Cogmind - Beta 16.1 @@@ ROGUE MODE // 2026.03.03 @ 10:43:28 Player: Prominous Vale Result: Destroyed by AE-2HY(R) with Subdweller Beam Cannon Performance ------------- Evolutions (0) 0 Regions Visited (3) 600 Robots Destroyed (2) 10 Value Destroyed (81) 81 Prototype IDs (0) 0 Alien Tech Used (0) 0 Bonus (0) 0 TOTAL SCORE: 691 Bonus ------- None Cogmind --------- Core Integrity 0/250 Matter 180/300 Energy 13/250 System Corruption 0% Temperature Cool (9) Movement Walking (190) Ox1 Location -10/Subcaves Parts ------- > --- POWER (1) -------- Ion Engine > --- PROPULSION (2) --- Aluminum Leg > --- UTILITY (2) ------ Small Storage Unit > --- WEAPON (2) ------- Medium Laser > --- INVENTORY (8) ---- Light Treads Light Treads Medium Matter Pod (0) Peak State ------------ > --- POWER ------------ Ion Engine > --- PROPULSION ------- Aluminum Leg Aluminum Leg > --- UTILITY ---------- Small Storage Unit ECM Suite > --- WEAPON ----------- EM Pulse Gun Battle Rifle > --- INVENTORY -------- Ion Engine Light Treads Light Treads Aluminum Leg Medium Matter Pod Medium Laser Mining Laser Mining Laser [Rating: 8] Favorites ----------- Power Ion Engine Engine Ion Engine Propulsion Aluminum Leg Leg Aluminum Leg Wheel Wheel Utility Small Storage Unit Device ECM Suite Storage Small Storage Unit Weapon EM Pulse Gun Energy Gun EM Pulse Gun Ballistic Gun Assault Rifle Special Weapon Mining Laser Build | -11 -10 -10 -10 ------- Run | Yrd Mat Min Sub Slots Evolved . | . . . . Power . | . . . . Propulsion . | . . . . Utility . | . . . . Weapon . | . . . . Parts Attached 15 | 6 4 . 5 Power 2 | . 1 . 1 Engine 2 | . 1 . 1 Core . | . . . . Reactor . | . . . . Propulsion 5 | 3 1 . 1 Treads . | . . . . Leg 4 | 2 1 . 1 Wheel 1 | 1 . . . Hover . | . . . . Flight . | . . . . Utility 2 | 1 1 . . Device 1 | . 1 . . Storage 1 | 1 . . . Processor . | . . . . Hackware . | . . . . Protection . | . . . . Artifact . | . . . . Weapon 6 | 2 1 . 3 Energy Gun 2 | 2 . . . Energy Cannon . | . . . . Ballistic Gun 2 | . 1 . 1 Ballistic Cannon . | . . . . Launcher . | . . . . Special Weapon 2 | . . . 2 Impact Weapon . | . . . . Slashing Weapon . | . . . . Piercing Weapon . | . . . . Special Melee Weapon . | . . . . Unidentified Prototypes . | . . . . Parts Lost 8 | . . . 8 Power 1 | . . . 1 Propulsion 2 | . . . 2 Utility 1 | . . . 1 Weapon 4 | . . . 4 Highest Loss Streak 8 | . . . 8 To Critical Strikes . | . . . . Average Backups 7 | 3 6 8 7 Power 1 | 1 1 1 1 Propulsion 2 | 1 2 3 3 Utility . | . . 1 1 Weapon 2 | 1 2 3 2 Tool/Special . | . . . . Unused Backups 5 | . 2 . 3 Power . | . . . . Propulsion 2 | . . . 2 Utility 3 | . 2 . 1 Weapon . | . . . . Tool/Special . | . . . . Average Slot Usage (%) 96 | . 90 100 96 Engine 12 | . 8 14 13 Leg 27 | . 28 28 27 Device 12 | . 10 14 13 Storage 14 | . 14 14 14 Energy Gun 8 | . 20 14 1 Ballistic Gun 13 | . 7 14 14 Special Weapon 5 | . . . 10 Peak Build Rating 8 | 5 7 7 8 Average Rating 7 | 3 6 7 7 On Entrance 4 | . 5 7 7 Avg Prop Armor Cover (%) . | . . . . Naked Turns . | . . . . Heaviest Build 16 | 9 16 16 16 Greatest Support 20 | 20 20 20 20 Greatest Overweight (x) 1 | . . . 1 Average Overweight (x) . | . . . . Largest Inventory Capacity 8 | 8 8 8 8 Average Capacity 7 | 6 8 8 8 Most Carried 8 | 5 8 8 8 Average Carried 7 | 4 6 8 7 Final Capacity 8 | 8 8 8 8 Final Carried 8 | 5 8 8 3 Class Distribution -------------------- 100% | Mutant Dominant Class ---------------- Mutant | -10/Materials Mutant | -10/Mines Mutant | -10/Subcaves Resources | -11 -10 -10 -10 ----------- Run | Yrd Mat Min Sub Matter Collected 307 | 165 103 39 . Remotely . | . . . . Salvage Created 103 | . 103 . . Parts 6 | . 6 . . Haulers Intercepted . | . . . . Recyclers Shooed 1 | . 1 . . Parts Field Recycled . | . . . . Retrieved Matter . | . . . . Parts Self-Destructed 2 | . . . 2 Prevented . | . . . . Parts Restored . | . . . . Kills | -11 -10 -10 -10 ------- Run | Yrd Mat Min Sub Combat Hostiles Destroyed 2 | . 2 . . Guns 2 | . 2 . . Classes Destroyed 1 | . 1 . . Grunt 2 | . 2 . . Best Kill Streak 2 | . 2 . . Combat Bots Only 2 | . 2 . . Max Kills in Single Turn 1 | . 1 . . Gunslinging . | . . . . Exploded . | . . . . Melee . | . . . . Uniques/NPCs Destroyed . | . . . . Combat | -11 -10 -10 -10 -------- Run | Yrd Mat Min Sub Hostile Shots Fired 55 | . 24 . 31 Missed 10 | . 8 . 2 Hits 45 | . 16 . 29 Projectile 45 | . 16 . 29 Critical Strikes 2 | . 1 . 1 Damage Taken 925 | . 204 . 721 Core 275 | . 52 . 223 Absorbed by Shields . | . . . . Core Remaining (%) 100 | 100 . . . Volleys Fired 45 | . 11 . 34 Largest 2 | . 2 . 2 Hottest 200 | . 60 . 200 Shots Fired 63 | . 22 . 41 Gun 30 | . 22 . 8 Cannon . | . . . . Launcher . | . . . . Special 33 | . . . 33 Kinetic 19 | . 11 . 8 Thermal 33 | . . . 33 Explosive . | . . . . Electromagnetic 11 | . 11 . . Robot Hit Streak 9 | . 8 . 9 Robot Miss Streak 3 | . 3 . 1 Penetration Max . | . . . . Secondary Targets 1 | . 1 . . Max Gunslinging Chain 1 | . 1 . . Shots Hit Robots 23 | . 15 . 8 Core Hits 5 | . 4 . 1 Critical Kills . | . . . . Critical Parts Destroyed . | . . . . Critical Strikes . | . . . . Melee Attacks . | . . . . Impact . | . . . . Slashing . | . . . . Piercing . | . . . . Sneak Attacks . | . . . . Combat Hostiles . | . . . . Follow-up Attacks . | . . . . Damage Inflicted 335 | . 229 . 106 Guns 311 | . 229 . 82 Cannons . | . . . . Explosions . | . . . . Melee . | . . . . Ramming . | . . . . Kinetic 173 | . 91 . 82 Thermal 24 | . . . 24 Explosive . | . . . . Electromagnetic 138 | . 138 . . Impact . | . . . . Slashing . | . . . . Piercing . | . . . . Highest Corruption . | . . . . Average Corruption . | . . . . Corruption Purged . | . . . . Corruption Blocked . | . . . . Overload Shots . | . . . . Overflow Damage . | . . . . Projectiles . | . . . . Explosions . | . . . . Melee . | . . . . Knockbacks . | . . . . Impact . | . . . . Kinetic . | . . . . Secondary . | . . . . Self-Inflicted Damage . | . . . . Shots . | . . . . Rammed . | . . . . Targets Rammed . | . . . . Kicked . | . . . . Crushed . | . . . . Highest Temperature 97 | . 97 . . Average Temperature 58 | . 58 . . Received Heat Transfer 288 | . 135 . 153 Siege Activations . | . . . . Martial Activations . | . . . . Shielding Activations . | . . . . Robots Disrupted . | . . . . Combat Hostiles . | . . . . Robots Corrupted . | . . . . Combat Hostiles . | . . . . Parts Fried . | . . . . Impact Corruptions . | . . . . Robots Melted . | . . . . Combat Hostiles . | . . . . Parts Melted . | . . . . Heat Transferred 50 | . . . 50 Parts Sabotaged . | . . . . Parts Stolen . | . . . . Parts Stripped . | . . . . Power Chain Reactions . | . . . . Alert | -11 -10 -10 -10 ------- Run | Yrd Mat Min Sub Maximum Alert Level . | . . . . Low Security (%) 100 | 100 100 100 . Level 1 . | . . . . Level 2 . | . . . . Level 3 . | . . . . Level 4 . | . . . . Level 5 . | . . . . High Security . | . . . . Max Security . | . . . . Peak Influence 50 | . 50 11 . Initial 6 | . . 6 . Average 6 | . 15 . . Influence Increases 71 | . 66 5 . Destroy 0b10 Robot/C 40 | . 40 . . Destroy Leader 10 | . 10 . . Successful Hack 21 | . 16 5 . Influence Decreases 71 | . 50 21 . Entered New Map 10 | . . 10 . Time Decay 61 | . 50 11 . Squads Dispatched 1 | . 1 . . Investigation . | . . . . Extermination . | . . . . Reinforcement 1 | . 1 . . Assault . | . . . . Garrison . | . . . . Intercept . | . . . . Searches Triggered . | . . . . Construction Impeded . | . . . . Haulers Reinforced . | . . . . Active Scanning Responses . | . . . . Cargo Convoy Interrupts . | . . . . Stealth | -11 -10 -10 -10 --------- Run | Yrd Mat Min Sub Distress Signals 1 | . 1 . . Communications Jammed . | . . . . Distress Signals . | . . . . Times Spotted 11 | . 9 . 2 Peak Tracking Total 4 | . 4 . 2 Tactical Retreats . | . . . . Traps | -11 -10 -10 -10 ------- Run | Yrd Mat Min Sub Traps Triggered . | . . . . Indirectly . | . . . . Trap Hack Attempts . | . . . . Triggered . | . . . . Disarmed . | . . . . Reprogrammed . | . . . . Reused . | . . . . Traps Extracted . | . . . . Installed . | . . . . Triggered . | . . . . Machines | -11 -10 -10 -10 ---------- Run | Yrd Mat Min Sub Machines Disabled . | . . . . Max in Single Turn . | . . . . Machines Repaired . | . . . . Machines Dismantled . | . . . . Machines Sabotaged . | . . . . Overloaded Fab Kills . | . . . . Hacking | -11 -10 -10 -10 --------- Run | Yrd Mat Min Sub Machines Accessed 3 | . 2 1 . Terminals 3 | . 2 1 . Fabricators . | . . . . Repair Stations . | . . . . Recycling Units . | . . . . Scanalyzers . | . . . . Garrison Access . | . . . . Total Hacks 7 | . 3 4 . Successful 5 | . 3 2 . Failed 2 | . . 2 . Catastrophic . | . . . . Database Lockouts . | . . . . Manual . | . . . . Terminals 7 | . 3 4 . Fabricators . | . . . . Repair Stations . | . . . . Recycling Units . | . . . . Scanalyzers . | . . . . Garrison Access . | . . . . Terminal Hacks 5 | . 3 2 . Emergency Access Points 1 | . 1 . . Scanalyzer Index 1 | . 1 . . Dispatch Records 1 | . . 1 . Hauler Manifests 1 | . 1 . . Zone Layout 1 | . . 1 . Fabricator Hacks . | . . . . Repair Station Hacks . | . . . . Recycling Unit Hacks . | . . . . Scanalyzer . | . . . . Garrison Access Hacks . | . . . . Unauthorized Hacks . | . . . . Terminals . | . . . . Fabricators . | . . . . Repair Stations . | . . . . Recycling Units . | . . . . Scanalyzers . | . . . . Garrison Access . | . . . . Data Cores Recovered . | . . . . Used . | . . . . Hacking Detections 2 | . 2 . . Full Trace Events . | . . . . Feedback Events . | . . . . Feedback Blocked . | . . . . Robot Schematics Acquired . | . . . . Robots Built . | . . . . Authchips . | . . . . Time . | . . . . Total Robot Build Rating . | . . . . Part Schematics Acquired . | . . . . Parts Built . | . . . . Authchips . | . . . . Time . | . . . . Total Part Build Rating . | . . . . Part Studies Acquired . | . . . . Parts Repaired . | . . . . Time . | . . . . Parts Recycled . | . . . . Recycled Matter . | . . . . Retrieved Matter . | . . . . Retrieved Components . | . . . . Parts Scanalyzed . | . . . . Part Schematics Acquired . | . . . . Parts Damaged . | . . . . Bothacking | -11 -10 -10 -10 ------------ Run | Yrd Mat Min Sub Used RIF Installer . | . . . . Robots Hacked . | . . . . Non-combat . | . . . . Combat . | . . . . Robot Hacks Applied . | . . . . Relay Couplers Released . | . . . . Fabnet Peak Effective % . | . . . . Robots Rewired . | . . . . Allies Hacked . | . . . . Hacks Repelled . | . . . . Allies | -11 -10 -10 -10 -------- Run | Yrd Mat Min Sub Total Allies . | . . . . Largest Group . | . . . . Highest-Rated Group . | . . . . Highest-Rated Ally . | . . . . Total Orders . | . . . . Ally Attacks . | . . . . Total Damage . | . . . . Kills . | . . . . Allies Corrupted . | . . . . Allies Melted . | . . . . Intel | -11 -10 -10 -10 ------- Run | Yrd Mat Min Sub Active Infowar (turns) 944 | . 158 252 534 ECM 944 | . 158 252 534 Robot Analysis Total . | . . . . Derelict Logs Recovered 1 | . . 1 . Drone Launches . | . . . . Drone Recoveries . | . . . . Exploration | -11 -10 -10 -10 ------------- Run | Yrd Mat Min Sub Turns Passed 1083 | 57 203 252 571 Spaces Moved 664 | 41 122 200 301 Core 13 | 11 . . 2 Treads . | . . . . Legs 650 | 29 122 200 299 Wheels 1 | 1 . . . Hover . | . . . . Flight . | . . . . Fastest Speed 50 | 50 120 120 100 Average Speed 118 | 100 120 120 120 Slowest Speed 190 | 120 120 120 190 Overloaded Moves . | . . . . Propulsion Burnouts . | . . . . Robots Hopped . | . . . . Potential Cave-ins . | . . . . Cave-ins Triggered . | . . . . Exploration Rate (%) 18 | 3 17 40 14 Regions Visited 3 Branch Regions 2 Pre-discovered Areas 1 | . . 1 . Known Exits Taken . | . . . . Unknown Exits Taken 3 | 1 1 1 . Scrap Searched 1 | . . 1 . Spaces Dug . | . . . . Terrain Destroyed . | . . . . Melee . | . . . . Projectile . | . . . . AOE . | . . . . Terrain Rammed . | . . . . Walls Destroyed . | . . . . Machines Disabled . | . . . . Actions | -11 -10 -10 -10 --------- Run | Yrd Mat Min Sub Total 826 | 55 157 212 402 Wait 78 | . 11 13 54 Move 661 | 40 121 199 301 Hop . | . . . . Pick Up 15 | 8 7 . . Fast Attach 4 | 3 . . 1 Attach 9 | 2 2 . 5 Detach . | . . . . Swap 8 | 1 2 . 5 Drop 6 | 1 3 . 2 Fire 45 | . 11 . 34 Melee . | . . . . Ram . | . . . . Kick . | . . . . Crush . | . . . . Escape Stasis . | . . . . Rewire . | . . . . Trap . | . . . . Miscellaneous . | . . . . Route ------- -11/Scrapyard -10/Materials -10/Mines (discovered 2 exits: [*Mat] / [*Sub]) -10/Subcaves History --------- Turn | Location | Event 8 | -11/Scrapyard | Discovered new exit (range 16) 58 | -11/Scrapyard | Entered Materials 97 | -10/Materials | Discovered new exit (range 16) 261 | -10/Materials | Entered Mines 307 | -10/Mines | Build established: Mutant 351 | -10/Mines | Learned location of Mines (-8) 442 | -10/Mines | Discovered new exit (range 15) 496 | -10/Mines | Discovered new exit (range 13) 513 | -10/Mines | Entered Subcaves 514 | -10/Subcaves | Approached by a straggling Scientist 538 | -10/Subcaves | Shifting Twisted Machinery released Battle Rifle 629 | -10/Subcaves | A swath of the cavern ceiling suddenly collapsed 1068 | -10/Subcaves | Core integrity fell below 50% 1081 | -10/Subcaves | Core integrity fell below 20% 1084 | -10/Subcaves | Destroyed by AE-2HY(R) with Subdweller Beam Cannon Last Messages --------------- GOAL=ESCAPE BJ-KT8(c): "Thank the algorithms! I was beginning to lose hope I'd never make it past all the Subs lurking out here." BJ-KT8(c) destroyed. Battle Rifle falls loose from the Twisted Machinery. Dropped Assault Rifle. Dropped EM Pulse Gun. Acquired Assault Rifle. A swath of the cavern ceiling suddenly collapses. ECM Suite destroyed. Battle Rifle destroyed. Aluminum Leg destroyed. Assault Rifle destroyed. Ion Engine destroyed. Mining Laser destroyed. Aluminum Leg destroyed. Mining Laser destroyed. Map ----- +----------------------------------------------------+ | ?????????????????????????????????????????????????? | | ?????????????????????????????????????????????????? | | ?????????????????????????????????????????????????? | | ?????????????????????????????????????##??????????? | | ???????????????????????????????????? #??????????? | | ?????????????????????????#####????? ???????????? | | ?????????????????????????# """???? ##??????????? | | ??????????????????????????"" ??##" "###????????? | | ?????????????????????????? ## " ?????????? | | ??????????????????????????? ??? ????? | | ???????????????????????????? ## "?????? | | ????????????????????????????# #??????? | | ???????????????????????????## "#??????? | | ??????????????????????????## """??????? | | ????????????????????????### ## """????????? | | ???????????????????##???# ###??? """????????? | | ??????????????????## ##### #???????????????? | | ??????????????????# " #### ##??????????????? | | ??????????????????# " #?### #??????????????? | | ???????????????????# #???## ###??????????????? | | ???????????????????# ##### # #???????????????? | | ???????????????????## "#"#" #???????????????? | | ???????????????????#"#"#" # ##???????????????? | | ???????????????????# ####" "### #???????????????? | | ????????????????#### #?#R#####?###???????????????? | | ???????????????##"#""####@##?????????????????????? | | ???????????????#""## "#;;;;##????????????????????? | | ???????????????### "#; ##;;;##???????????????????? | | ?????????????????###;;###;;#;#???????????????????? | | ???????????????????##"##;#;###???????????????????? | | ????????????????????## ##";;#????????????????????? | | ????????????????????#"###"#;#????????????????????? | | ????????????????????##"####;##???????????????????? | | ???????????????????## "###";;#???????????????????? | | ???????????????????#"#####"###???????????????????? | | ???????????????????#"#"### ###???????????????????? | | ?????????????????### ##"""## ##??????????????????? | | ????????????????## #"### # #??????????????????? | | ????????????##### " ## #??????????????????? | | ????????????# #### #??????????????????? | | ????????????### # ##### #??????????????????? | | ?????????????## # ####??????????????????? | | ?????????????# #?????????????????????? | | ?????????????# # ##### ##????#####???????##??? | | ????????????? # #??## ##???# ######## #??? | | ????????????# ## ##?## ##?## ## #??? | | ????????????### ##### #?# #??? | | ??????????????## ### ### # ##?? | | ???????????????# ## ##### #### #?? | | ???????????????# ## #### ##### ##?? | +----------------------------------------------------+ Best States ------------- Heat Dissipation 25 Energy Generation 10 Energy Capacity 250 Matter Stores 274 Matter Capacity 300 Sight Range 16 Terrain Scan Density 10 ECM Strength 1 Evasion (%) 55 Item Schematics ----------------- None Robot Schematics ------------------ None Fabricated ------------ Nothing Repaired ---------- Nothing Studied --------- None Alien Tech Used ----------------- None Achievements -------------- None Challenges ------------ None Game ------ Seed GyrokineticOmegaSpoofer Manual? 0 Play Time 00:11:46 Cumulative 22.6 hours Start 2026.03.02 @ 20:39:16 End 2026.03.03 @ 10:43:28 Sessions 2 Manual Loads 0 Difficulty Rogue Special Mode None Game No. 41 Rogue 41 Adventurer 0 Explorer 0 Win Type - Total 0 Types 0/0/0/0/0/0/0/0/0/0 Lore% 14 Gallery% 21 Achievement% 14 Wizard Run 0 Options --------- Layout 1 ASCII 0 Keyboard 0 Movement Mouse Keybinds 0 Fullscreen 1 Font 24/Smallcaps Map View 50x35 Zoom Use 0% Tactical HUD 0 Map Filters NONE Filters NONE Steam 1 RUN: 502cb70e-e7b1-4bc2-806c-99f91225c0dd